[Event "Early-Titled-Tuesday-Blitz-September-26-2023"]
[Site "Chess.com"]
[Date "2023.09.26"]
[Round "6"]
[White "Doomfist26"]
[Black "MasterKroket"]
[Result "1/2-1/2"]
[WhiteElo "2602"]
[BlackElo "2435"]
[TimeControl "180+1"]
[EndTime "9:09:59 PDT"]
[Termination "Game drawn - insufficient material"]

1. e4 {[%clk 0:03:00.9]} 1... e5 {[%clk 0:02:59.5]} 2. Nf3 {[%clk 0:03:00.5]}
2... Nc6 {[%clk 0:03:00]} 3. Bc4 {[%clk 0:03:01.2]} 3... Bc5 {[%clk 0:02:59.8]}
4. b4 {[%clk 0:03:01.1]} 4... Bxb4 {[%clk 0:02:59.6]} 5. c3 {[%clk 0:03:01.7]}
5... Ba5 {[%clk 0:02:51.9]} 6. d4 {[%clk 0:03:01.9]} 6... exd4 {[%clk
0:02:49.1]} 7. O-O {[%clk 0:02:59.9]} 7... Nf6 {[%clk 0:02:44]} 8. e5 {[%clk
0:02:53.1]} 8... d5 {[%clk 0:02:44.1]} 9. exf6 {[%clk 0:02:51.9]} 9... dxc4
{[%clk 0:02:43.8]} 10. fxg7 {[%clk 0:02:52.6]} 10... Rg8 {[%clk 0:02:43.8]} 11.
Bg5 {[%clk 0:02:45.6]} 11... Qd5 {[%clk 0:02:37.4]} 12. Bf6 {[%clk 0:02:40.7]}
12... Be6 {[%clk 0:02:28.8]} 13. Nxd4 {[%clk 0:02:37.1]} 13... Nxd4 {[%clk
0:02:21.4]} 14. Qxd4 {[%clk 0:02:30.9]} 14... Qxd4 {[%clk 0:02:20.4]} 15. cxd4
{[%clk 0:02:31.4]} 15... Bd5 {[%clk 0:01:57.7]} 16. Na3 {[%clk 0:02:08.2]} 16...
Kd7 {[%clk 0:01:57]} 17. Nc2 {[%clk 0:02:05.7]} 17... Ke6 {[%clk 0:01:57]} 18.
Ne3 {[%clk 0:01:57.9]} 18... Kxf6 {[%clk 0:01:51.9]} 19. Nxd5+ {[%clk
0:01:56.5]} 19... Kxg7 {[%clk 0:01:52.2]} 20. Rac1 {[%clk 0:01:52.7]} 20... c6
{[%clk 0:01:47.8]} 21. Ne7 {[%clk 0:01:48.9]} 21... Rge8 {[%clk 0:01:46.6]} 22.
Nf5+ {[%clk 0:01:49.5]} 22... Kf6 {[%clk 0:01:46.5]} 23. Nd6 {[%clk 0:01:50.2]}
23... Re2 {[%clk 0:01:24.5]} 24. Nxb7 {[%clk 0:01:44.9]} 24... Bb6 {[%clk
0:01:18.2]} 25. Rxc4 {[%clk 0:01:43.8]} 25... Rxa2 {[%clk 0:01:14.2]} 26. Rxc6+
{[%clk 0:01:43.1]} 26... Kg7 {[%clk 0:01:14.9]} 27. d5 {[%clk 0:01:35.8]} 27...
Re8 {[%clk 0:01:15.3]} 28. Nd6 {[%clk 0:01:22.8]} 28... Re5 {[%clk 0:00:48.3]}
29. g4 {[%clk 0:01:22.7]} 29... f6 {[%clk 0:00:40.1]} 30. Nf5+ {[%clk
0:01:21.3]} 30... Kg6 {[%clk 0:00:39.6]} 31. d6 {[%clk 0:01:13.1]} 31... Ree2
{[%clk 0:00:33]} 32. d7 {[%clk 0:01:06.1]} 32... Rad2 {[%clk 0:00:19]} 33. Nd6
{[%clk 0:00:07.7]} 33... Bd8 {[%clk 0:00:18.8]} 34. h4 {[%clk 0:00:03.9]} 34...
Re6 {[%clk 0:00:17.9]} 35. h5+ {[%clk 0:00:04.3]} 35... Kg7 {[%clk 0:00:12.9]}
36. Nf5+ {[%clk 0:00:04.1]} 36... Kf7 {[%clk 0:00:13.6]} 37. Nh6+ {[%clk
0:00:03.5]} 37... Ke7 {[%clk 0:00:13.7]} 38. Nf5+ {[%clk 0:00:02.3]} 38... Kxd7
{[%clk 0:00:14.4]} 39. Rxe6 {[%clk 0:00:02.7]} 39... Kxe6 {[%clk 0:00:14.7]} 40.
Re1+ {[%clk 0:00:03.6]} 40... Kd5 {[%clk 0:00:13.7]} 41. Re8 {[%clk 0:00:03.8]}
41... Bb6 {[%clk 0:00:14]} 42. Ne3+ {[%clk 0:00:03.6]} 42... Bxe3 {[%clk
0:00:13.5]} 43. Rxe3 {[%clk 0:00:04.5]} 43... a5 {[%clk 0:00:13.2]} 44. Ra3
{[%clk 0:00:04.7]} 44... Ke5 {[%clk 0:00:12.1]} 45. Rxa5+ {[%clk 0:00:05.1]}
45... Kf4 {[%clk 0:00:12.6]} 46. Ra4+ {[%clk 0:00:05]} 46... Kg5 {[%clk
0:00:12.8]} 47. Kg2 {[%clk 0:00:05.1]} 47... f5 {[%clk 0:00:12.7]} 48. Kg3
{[%clk 0:00:02.8]} 48... fxg4 {[%clk 0:00:12.7]} 49. Rxg4+ {[%clk 0:00:03.2]}
49... Kxh5 {[%clk 0:00:13]} 50. Ra4 {[%clk 0:00:02.4]} 50... Rd5 {[%clk
0:00:12.3]} 51. f4 {[%clk 0:00:02.2]} 51... Kg6 {[%clk 0:00:12.4]} 52. Kg4
{[%clk 0:00:02.2]} 52... h5+ {[%clk 0:00:12.3]} 53. Kf3 {[%clk 0:00:02.8]} 53...
Kf5 {[%clk 0:00:12.5]} 54. Ra3 {[%clk 0:00:01.8]} 54... Rb5 {[%clk 0:00:12.4]}
55. Re3 {[%clk 0:00:01.7]} 55... Ra5 {[%clk 0:00:12.4]} 56. Rb3 {[%clk
0:00:02.1]} 56... Rc5 {[%clk 0:00:12.3]} 57. Kg3 {[%clk 0:00:02.8]} 57... Ra5
{[%clk 0:00:11.8]} 58. Rb4 {[%clk 0:00:03.4]} 58... Ra3+ {[%clk 0:00:11.2]} 59.
Kh4 {[%clk 0:00:04.1]} 59... Rf3 {[%clk 0:00:11.1]} 60. Rb5+ {[%clk 0:00:03.2]}
60... Kxf4 {[%clk 0:00:11]} 61. Kxh5 {[%clk 0:00:03.9]} 61... Rh3+ {[%clk
0:00:11.1]} 62. Kg6 {[%clk 0:00:04.5]} 62... Rg3+ {[%clk 0:00:11.5]} 63. Kf6
{[%clk 0:00:05.1]} 63... Kf3 {[%clk 0:00:11.9]} 64. Rb3+ {[%clk 0:00:05.2]}
64... Kg2 {[%clk 0:00:12.8]} 65. Rb2+ {[%clk 0:00:05.6]} 65... Kh3 {[%clk
0:00:12.8]} 66. Kf5 {[%clk 0:00:06.3]} 66... Rg2 {[%clk 0:00:13]} 67. Rb1 {[%clk
0:00:06.2]} 67... Rg3 {[%clk 0:00:12.5]} 68. Kf4 {[%clk 0:00:06.6]} 68... Rg4+
{[%clk 0:00:12.6]} 69. Kf3 {[%clk 0:00:07]} 69... Rg3+ {[%clk 0:00:13.1]} 70.
Kf4 {[%clk 0:00:07.6]} 70... Rg4+ {[%clk 0:00:13.5]} 71. Kf5 {[%clk 0:00:08.5]}
71... Rg3 {[%clk 0:00:13.7]} 72. Rb2 {[%clk 0:00:09]} 72... Rg2 {[%clk
0:00:13.9]} 73. Rb8 {[%clk 0:00:09.6]} 73... Rf2+ {[%clk 0:00:14]} 74. Ke4
{[%clk 0:00:09.6]} 74... Kg3 {[%clk 0:00:14.3]} 75. Rg8+ {[%clk 0:00:09.3]}
75... Kh3 {[%clk 0:00:14.8]} 76. Ke3 {[%clk 0:00:09.6]} 76... Rf7 {[%clk
0:00:14.8]} 77. Rg1 {[%clk 0:00:08.1]} 77... Rf6 {[%clk 0:00:15.2]} 78. Ke2
{[%clk 0:00:07.7]} 78... Rf7 {[%clk 0:00:15.5]} 79. Rf1 {[%clk 0:00:08.4]} 79...
Rxf1 {[%clk 0:00:15.4]} 80. Kxf1 {[%clk 0:00:09.1]} 1/2-1/2

[Event "Early-Titled-Tuesday-Blitz-September-26-2023"]
[Site "Chess.com"]
[Date "2023.09.26"]
[Round "6"]
[White "Mikhail_Golubev"]
[Black "AradNazari"]
[Result "1/2-1/2"]
[WhiteElo "2592"]
[BlackElo "2795"]
[TimeControl "180+1"]
[EndTime "9:10:05 PDT"]
[Termination "Game drawn by repetition"]

1. e4 {[%clk 0:03:00.9]} 1... c5 {[%clk 0:02:55.2]} 2. Nf3 {[%clk 0:03:00.1]}
2... d6 {[%clk 0:02:41.1]} 3. d4 {[%clk 0:02:59.9]} 3... cxd4 {[%clk 0:02:41.2]}
4. Nxd4 {[%clk 0:03:00.8]} 4... Nf6 {[%clk 0:02:41.9]} 5. Nc3 {[%clk 0:03:00.8]}
5... a6 {[%clk 0:02:42.6]} 6. Bc4 {[%clk 0:02:59.6]} 6... e6 {[%clk 0:02:42.1]}
7. O-O {[%clk 0:02:59.8]} 7... b5 {[%clk 0:02:40.6]} 8. Bb3 {[%clk 0:02:59.2]}
8... Qb6 {[%clk 0:02:41.2]} 9. Qf3 {[%clk 0:02:37.5]} 9... Qb7 {[%clk
0:02:40.9]} 10. Re1 {[%clk 0:02:21.6]} 10... Nbd7 {[%clk 0:02:41.3]} 11. Qg3
{[%clk 0:02:12.5]} 11... b4 {[%clk 0:02:36.8]} 12. Nd5 {[%clk 0:02:04.7]} 12...
exd5 {[%clk 0:02:13.9]} 13. exd5+ {[%clk 0:02:02.8]} 13... Kd8 {[%clk
0:02:14.6]} 14. Nc6+ {[%clk 0:01:24.2]} 14... Kc7 {[%clk 0:02:14.6]} 15. c3
{[%clk 0:01:18.5]} 15... Nc5 {[%clk 0:02:04.9]} 16. cxb4 {[%clk 0:01:08.2]}
16... Nxb3 {[%clk 0:02:05.1]} 17. axb3 {[%clk 0:01:08]} 17... Bd7 {[%clk
0:02:05.5]} 18. Bg5 {[%clk 0:01:01.9]} 18... Bxc6 {[%clk 0:01:48]} 19. dxc6
{[%clk 0:01:01.5]} 19... Qxb4 {[%clk 0:01:48.6]} 20. Qf3 {[%clk 0:00:26.8]}
20... Rg8 {[%clk 0:01:23.1]} 21. Bxf6 {[%clk 0:00:22]} 21... gxf6 {[%clk
0:01:23.6]} 22. Qxf6 {[%clk 0:00:21.9]} 22... Rg7 {[%clk 0:00:58.5]} 23. Re7+
{[%clk 0:00:18.9]} 23... Bxe7 {[%clk 0:00:38]} 24. Qxe7+ {[%clk 0:00:18.8]}
24... Kxc6 {[%clk 0:00:38.6]} 25. Rc1+ {[%clk 0:00:18.3]} 25... Kd5 {[%clk
0:00:38]} 26. Rd1+ {[%clk 0:00:15.3]} 26... Kc6 {[%clk 0:00:36.5]} 27. Rc1+
{[%clk 0:00:12.9]} 27... Kd5 {[%clk 0:00:36.8]} 28. Rc4 {[%clk 0:00:08.5]} 28...
Qxc4 {[%clk 0:00:13.3]} 29. bxc4+ {[%clk 0:00:08.1]} 29... Kxc4 {[%clk 0:00:14]}
30. Qe4+ {[%clk 0:00:07.9]} 30... Kb3 {[%clk 0:00:13.4]} 31. Qxa8 {[%clk
0:00:08.8]} 31... Kxb2 {[%clk 0:00:13.9]} 32. Qb7+ {[%clk 0:00:08.2]} 32... Kc3
{[%clk 0:00:13.4]} 33. Qxa6 {[%clk 0:00:08.9]} 33... Rg6 {[%clk 0:00:13.5]} 34.
Qc6+ {[%clk 0:00:09.1]} 34... Kd4 {[%clk 0:00:13.1]} 35. Qd7 {[%clk 0:00:08.9]}
35... Rf6 {[%clk 0:00:13.2]} 36. Qe7 {[%clk 0:00:08.9]} 36... Re6 {[%clk
0:00:13.8]} 37. Qh4+ {[%clk 0:00:06.9]} 37... Re4 {[%clk 0:00:14.5]} 38. f4
{[%clk 0:00:07.3]} 38... Kd3 {[%clk 0:00:13.9]} 39. Qf2 {[%clk 0:00:07]} 39...
d5 {[%clk 0:00:14.2]} 40. h3 {[%clk 0:00:06.8]} 40... d4 {[%clk 0:00:14.3]} 41.
Kh2 {[%clk 0:00:06.8]} 41... Re2 {[%clk 0:00:14.6]} 42. Qh4 {[%clk 0:00:06.8]}
42... Kc2 {[%clk 0:00:13.9]} 43. Qxh7+ {[%clk 0:00:06.8]} 43... d3 {[%clk
0:00:14.7]} 44. Qf5 {[%clk 0:00:06.6]} 44... Kc3 {[%clk 0:00:08.4]} 45. Qc5+
{[%clk 0:00:06.7]} 45... Kb2 {[%clk 0:00:07.9]} 46. Qb5+ {[%clk 0:00:06.2]}
46... Kc3 {[%clk 0:00:08.1]} 47. Qa5+ {[%clk 0:00:06.1]} 47... Kc2 {[%clk
0:00:08.1]} 48. Qa2+ {[%clk 0:00:06.2]} 48... Kc3 {[%clk 0:00:08.3]} 49. Qxf7
{[%clk 0:00:06.6]} 49... d2 {[%clk 0:00:08.8]} 50. Qc7+ {[%clk 0:00:06.3]} 50...
Kd3 {[%clk 0:00:09.1]} 51. Qd6+ {[%clk 0:00:06.4]} 51... Ke3 {[%clk 0:00:09.6]}
52. Qe5+ {[%clk 0:00:06.3]} 52... Kd3 {[%clk 0:00:07.1]} 53. Qb5+ {[%clk
0:00:06.6]} 53... Ke3 {[%clk 0:00:07.3]} 54. Qc5+ {[%clk 0:00:06.6]} 54... Kd3
{[%clk 0:00:07.8]} 55. Qb5+ {[%clk 0:00:05.5]} 55... Ke3 {[%clk 0:00:07.9]} 56.
Qb3+ {[%clk 0:00:05.6]} 56... Kf2 {[%clk 0:00:04.9]} 57. Qg3+ {[%clk 0:00:04.9]}
57... Kf1 {[%clk 0:00:04.5]} 58. Qd3 {[%clk 0:00:05.3]} 58... Ke1 {[%clk
0:00:04.8]} 59. Qg3+ {[%clk 0:00:04.3]} 59... Kf1 {[%clk 0:00:03.7]} 60. Qd3
{[%clk 0:00:04]} 60... Ke1 {[%clk 0:00:04]} 61. f5 {[%clk 0:00:03.7]} 61... d1=Q
{[%clk 0:00:03.8]} 62. Qxd1+ {[%clk 0:00:03.8]} 62... Kxd1 {[%clk 0:00:04.7]}
63. Kg3 {[%clk 0:00:03.8]} 63... Ke1 {[%clk 0:00:05.3]} 64. Kg4 {[%clk
0:00:03.6]} 64... Rxg2+ {[%clk 0:00:05.2]} 65. Kh5 {[%clk 0:00:03.7]} 65... Ke2
{[%clk 0:00:03.6]} 66. f6 {[%clk 0:00:03.7]} 66... Ke3 {[%clk 0:00:03.4]} 67. f7
{[%clk 0:00:03.6]} 67... Rf2 {[%clk 0:00:04]} 68. Kg6 {[%clk 0:00:03.9]} 68...
Ke4 {[%clk 0:00:04.7]} 69. h4 {[%clk 0:00:03.8]} 69... Ke5 {[%clk 0:00:04.9]}
70. Kg7 {[%clk 0:00:04.5]} 70... Rg2+ {[%clk 0:00:05.5]} 71. Kh7 {[%clk
0:00:04.2]} 71... Rf2 {[%clk 0:00:06]} 72. Kg7 {[%clk 0:00:04.6]} 72... Rg2+
{[%clk 0:00:06.6]} 73. Kh7 {[%clk 0:00:05.1]} 73... Rf2 {[%clk 0:00:07.2]} 74.
Kg7 {[%clk 0:00:05.4]} 1/2-1/2

[Event "Early-Titled-Tuesday-Blitz-September-26-2023"]
[Site "Chess.com"]
[Date "2023.09.26"]
[Round "6"]
[White "Irina_Mikhaylova"]
[Black "Caroexpert"]
[Result "0-1"]
[WhiteElo "2284"]
[BlackElo "2445"]
[TimeControl "180+1"]
[EndTime "9:10:06 PDT"]
[Termination "Caroexpert won by checkmate"]

1. d4 {[%clk 0:03:00.9]} 1... d5 {[%clk 0:02:59]} 2. c4 {[%clk 0:03:00.9]} 2...
e6 {[%clk 0:02:59.6]} 3. Nc3 {[%clk 0:03:00.2]} 3... a6 {[%clk 0:03:00.2]} 4.
cxd5 {[%clk 0:03:00]} 4... exd5 {[%clk 0:03:01.1]} 5. Bf4 {[%clk 0:02:56.5]}
5... Nf6 {[%clk 0:03:00.1]} 6. e3 {[%clk 0:02:56.9]} 6... c5 {[%clk 0:03:00.1]}
7. dxc5 {[%clk 0:02:56.4]} 7... Bxc5 {[%clk 0:02:59.9]} 8. Nf3 {[%clk
0:02:56.6]} 8... Nc6 {[%clk 0:02:58.1]} 9. Rc1 {[%clk 0:02:56.7]} 9... O-O
{[%clk 0:02:50.4]} 10. Be2 {[%clk 0:02:56.4]} 10... Be6 {[%clk 0:02:45.6]} 11.
O-O {[%clk 0:02:55.4]} 11... d4 {[%clk 0:02:36.6]} 12. exd4 {[%clk 0:02:39.8]}
12... Nxd4 {[%clk 0:02:36.1]} 13. Nxd4 {[%clk 0:02:37.8]} 13... Bxd4 {[%clk
0:02:37]} 14. Bf3 {[%clk 0:02:32.8]} 14... Ra7 {[%clk 0:02:26.5]} 15. a3 {[%clk
0:02:27.3]} 15... b5 {[%clk 0:02:26.4]} 16. Ne4 {[%clk 0:02:22.4]} 16... Nxe4
{[%clk 0:02:20.7]} 17. Bxe4 {[%clk 0:02:22.8]} 17... Bxb2 {[%clk 0:02:17.7]} 18.
Rc2 {[%clk 0:02:22.3]} 18... Qxd1 {[%clk 0:02:14.1]} 19. Rxd1 {[%clk 0:02:22.2]}
19... Bxa3 {[%clk 0:02:14.7]} 20. Be3 {[%clk 0:02:14.7]} 20... Rd7 {[%clk
0:02:00.8]} 21. Ra1 {[%clk 0:02:10.5]} 21... Be7 {[%clk 0:01:45.9]} 22. h3
{[%clk 0:02:04.5]} 22... b4 {[%clk 0:01:42.7]} 23. Rxa6 {[%clk 0:01:54.1]} 23...
b3 {[%clk 0:01:42.2]} 24. Rb2 {[%clk 0:01:48.7]} 24... Bf6 {[%clk 0:01:38.6]}
25. Rxe6 {[%clk 0:01:46.6]} 25... Bxb2 {[%clk 0:01:35]} 26. Rb6 {[%clk
0:01:46.5]} 26... Bd4 {[%clk 0:01:35.1]} 27. Rxb3 {[%clk 0:01:44.2]} 27... Bxe3
{[%clk 0:01:34.5]} 28. Rxe3 {[%clk 0:01:44.8]} 28... g6 {[%clk 0:01:33.9]} 29.
Bf3 {[%clk 0:01:42.6]} 29... Kg7 {[%clk 0:01:32.5]} 30. g3 {[%clk 0:01:43]}
30... Rc8 {[%clk 0:01:30.8]} 31. Re2 {[%clk 0:01:42.4]} 31... Rc1+ {[%clk
0:01:29.4]} 32. Kg2 {[%clk 0:01:42.8]} 32... Rcd1 {[%clk 0:01:19.5]} 33. h4
{[%clk 0:01:38]} 33... h5 {[%clk 0:01:18.4]} 34. Ra2 {[%clk 0:01:35]} 34... R1d2
{[%clk 0:01:17.7]} 35. Rxd2 {[%clk 0:01:33.9]} 35... Rxd2 {[%clk 0:01:17.5]} 36.
Be4 {[%clk 0:01:34.4]} 36... Kf6 {[%clk 0:01:17.2]} 37. Bc6 {[%clk 0:01:34]}
37... Ke5 {[%clk 0:01:16.3]} 38. Be8 {[%clk 0:01:31.1]} 38... Ke6 {[%clk
0:01:13.4]} 39. Bb5 {[%clk 0:01:30.9]} 39... Rb2 {[%clk 0:01:11.6]} 40. Bc4+
{[%clk 0:01:30.8]} 40... Kf6 {[%clk 0:01:11.7]} 41. Bd5 {[%clk 0:01:30.2]} 41...
Rd2 {[%clk 0:01:09.5]} 42. Bc4 {[%clk 0:01:30.3]} 42... Rd7 {[%clk 0:01:07]} 43.
Bb5 {[%clk 0:01:29.7]} 43... Rc7 {[%clk 0:01:06.1]} 44. Bd3 {[%clk 0:01:29]}
44... Ke5 {[%clk 0:01:06.2]} 45. Be2 {[%clk 0:01:27.1]} 45... Kd4 {[%clk
0:01:05.2]} 46. Bf3 {[%clk 0:01:26.3]} 46... Kd3 {[%clk 0:01:04.6]} 47. Bd5
{[%clk 0:01:26.4]} 47... Rd7 {[%clk 0:01:04.4]} 48. Bc6 {[%clk 0:01:26.2]} 48...
Rd6 {[%clk 0:01:03.5]} 49. Be8 {[%clk 0:01:25.9]} 49... Rf6 {[%clk 0:01:04.1]}
50. Bb5+ {[%clk 0:01:22.7]} 50... Kd2 {[%clk 0:01:03.5]} 51. Kf1 {[%clk
0:01:13.7]} 51... Re6 {[%clk 0:00:55.2]} 52. Bc4 {[%clk 0:01:12.6]} 52... Re1+
{[%clk 0:00:52.5]} 53. Kg2 {[%clk 0:01:12.9]} 53... Re7 {[%clk 0:00:51.6]} 54.
Kf1 {[%clk 0:01:13.2]} 54... f6 {[%clk 0:00:48]} 55. Bb5 {[%clk 0:01:09.8]}
55... Re5 {[%clk 0:00:44.3]} 56. Ba4 {[%clk 0:01:01.4]} 56... Re1+ {[%clk
0:00:40.5]} 57. Kg2 {[%clk 0:01:01.4]} 57... Re4 {[%clk 0:00:39.8]} 58. Bc6
{[%clk 0:00:58.6]} 58... Re5 {[%clk 0:00:33.8]} 59. Kf1 {[%clk 0:00:54.4]} 59...
Re6 {[%clk 0:00:30.5]} 60. Bd5 {[%clk 0:00:50.4]} 60... Re7 {[%clk 0:00:28.4]}
61. Bc4 {[%clk 0:00:49.4]} 61... Kc3 {[%clk 0:00:24]} 62. Bd5 {[%clk 0:00:49.6]}
62... Kd3 {[%clk 0:00:22.3]} 63. Bc6 {[%clk 0:00:48.4]} 63... f5 {[%clk
0:00:20.2]} 64. Bb5+ {[%clk 0:00:45.5]} 64... Kd2 {[%clk 0:00:20.1]} 65. Bc6
{[%clk 0:00:38.2]} 65... Re1+ {[%clk 0:00:19.7]} 66. Kg2 {[%clk 0:00:38.2]}
66... Re5 {[%clk 0:00:19.7]} 67. Kf1 {[%clk 0:00:38.3]} 67... Re6 {[%clk
0:00:20.1]} 68. Bd5 {[%clk 0:00:37.8]} 68... Rb6 {[%clk 0:00:17.9]} 69. Ba2
{[%clk 0:00:25.9]} 69... Rf6 {[%clk 0:00:13.4]} 70. Bb3 {[%clk 0:00:25]} 70...
f4 {[%clk 0:00:13.1]} 71. Kg2 {[%clk 0:00:18.8]} 71... f3+ {[%clk 0:00:11.5]}
72. Kg1 {[%clk 0:00:19.2]} 72... Ke1 {[%clk 0:00:10.8]} 73. Bd5 {[%clk
0:00:18.8]} 73... Rf8 {[%clk 0:00:09]} 74. Be4 {[%clk 0:00:18.6]} 74... Ke2
{[%clk 0:00:09.2]} 75. Bc6 {[%clk 0:00:16.7]} 75... Rb8 {[%clk 0:00:09.2]} 76.
Bb5+ {[%clk 0:00:17]} 76... Rxb5 {[%clk 0:00:09.1]} 77. g4 {[%clk 0:00:17.5]}
77... hxg4 {[%clk 0:00:09.1]} 78. Kh2 {[%clk 0:00:17.9]} 78... Kxf2 {[%clk
0:00:09.3]} 79. h5 {[%clk 0:00:18.2]} 79... Rxh5# {[%clk 0:00:09.5]} 0-1

[Event "Early-Titled-Tuesday-Blitz-September-26-2023"]
[Site "Chess.com"]
[Date "2023.09.26"]
[Round "6"]
[White "rasmussvane"]
[Black "PeshkaCh"]
[Result "1-0"]
[WhiteElo "3003"]
[BlackElo "2807"]
[TimeControl "180+1"]
[EndTime "9:10:08 PDT"]
[Termination "rasmussvane won by checkmate"]

1. Nf3 {[%clk 0:03:00.9]} 1... Nf6 {[%clk 0:02:59.6]} 2. g3 {[%clk 0:03:00.8]}
2... d5 {[%clk 0:02:59.9]} 3. Bg2 {[%clk 0:03:01.1]} 3... c5 {[%clk 0:03:00.6]}
4. O-O {[%clk 0:03:01.2]} 4... Nc6 {[%clk 0:03:01]} 5. d4 {[%clk 0:03:01.8]}
5... cxd4 {[%clk 0:02:58.4]} 6. Nxd4 {[%clk 0:03:02.7]} 6... e5 {[%clk
0:02:59.1]} 7. Nxc6 {[%clk 0:03:03.2]} 7... bxc6 {[%clk 0:03:00]} 8. c4 {[%clk
0:03:03.8]} 8... Be7 {[%clk 0:02:49.5]} 9. Nc3 {[%clk 0:02:49.2]} 9... e4 {[%clk
0:02:49]} 10. Bg5 {[%clk 0:02:45.3]} 10... Be6 {[%clk 0:02:20.9]} 11. Qa4 {[%clk
0:02:44.4]} 11... O-O {[%clk 0:02:17.2]} 12. Rfd1 {[%clk 0:02:37.9]} 12... Qb6
{[%clk 0:02:05.4]} 13. cxd5 {[%clk 0:02:34.5]} 13... cxd5 {[%clk 0:02:05.4]} 14.
Rd2 {[%clk 0:01:42.8]} 14... h6 {[%clk 0:01:55.6]} 15. Be3 {[%clk 0:01:40]}
15... Qb4 {[%clk 0:01:51.2]} 16. Qxb4 {[%clk 0:01:36.7]} 16... Bxb4 {[%clk
0:01:52.1]} 17. Bd4 {[%clk 0:01:37.3]} 17... Rfc8 {[%clk 0:01:44.1]} 18. Rc1
{[%clk 0:01:34.3]} 18... a5 {[%clk 0:01:42.6]} 19. Rdc2 {[%clk 0:01:33.9]} 19...
Rc4 {[%clk 0:01:15.3]} 20. e3 {[%clk 0:01:01.9]} 20... Rac8 {[%clk 0:01:12.9]}
21. Bf1 {[%clk 0:01:00]} 21... R4c7 {[%clk 0:01:07.5]} 22. Ba6 {[%clk
0:00:59.9]} 22... Ra8 {[%clk 0:01:04.9]} 23. Be2 {[%clk 0:00:59.9]} 23... Rac8
{[%clk 0:01:04.3]} 24. Kf1 {[%clk 0:00:52]} 24... Ng4 {[%clk 0:00:58.4]} 25. h3
{[%clk 0:00:46.9]} 25... Nh2+ {[%clk 0:00:54.5]} 26. Kg2 {[%clk 0:00:47]} 26...
Nf3 {[%clk 0:00:55]} 27. Bxf3 {[%clk 0:00:44.9]} 27... exf3+ {[%clk 0:00:55.9]}
28. Kxf3 {[%clk 0:00:45.7]} 28... Bf5 {[%clk 0:00:49.8]} 29. Rd2 {[%clk
0:00:43]} 29... Bxc3 {[%clk 0:00:45.3]} 30. Rxc3 {[%clk 0:00:41.7]} 30... Rxc3
{[%clk 0:00:40.9]} 31. Bxc3 {[%clk 0:00:42.6]} 31... Be4+ {[%clk 0:00:40.7]} 32.
Ke2 {[%clk 0:00:42.6]} 32... a4 {[%clk 0:00:39.1]} 33. f3 {[%clk 0:00:42]} 33...
Bb1 {[%clk 0:00:39.2]} 34. Rxd5 {[%clk 0:00:40.3]} 34... Bxa2 {[%clk 0:00:39.4]}
35. Ra5 {[%clk 0:00:40.9]} 35... Bb3 {[%clk 0:00:39.6]} 36. g4 {[%clk
0:00:41.4]} 36... Rd8 {[%clk 0:00:38.5]} 37. e4 {[%clk 0:00:40.9]} 37... Bc4+
{[%clk 0:00:30.3]} 38. Kf2 {[%clk 0:00:39.7]} 38... Bb3 {[%clk 0:00:27.8]} 39.
Ke3 {[%clk 0:00:39.9]} 39... Bc4 {[%clk 0:00:27.9]} 40. Rxa4 {[%clk 0:00:39.1]}
40... Bb3 {[%clk 0:00:27.5]} 41. Rb4 {[%clk 0:00:38.5]} 41... Bc2 {[%clk
0:00:27.5]} 42. h4 {[%clk 0:00:37.7]} 42... Rd3+ {[%clk 0:00:27.4]} 43. Ke2
{[%clk 0:00:38.2]} 43... Rd1 {[%clk 0:00:23.8]} 44. Rb8+ {[%clk 0:00:36.8]}
44... Kh7 {[%clk 0:00:23.9]} 45. Rb7 {[%clk 0:00:37.7]} 45... Kg8 {[%clk
0:00:21.9]} 46. Rc7 {[%clk 0:00:35.7]} 46... Rh1 {[%clk 0:00:21.4]} 47. h5
{[%clk 0:00:29.8]} 47... Bd1+ {[%clk 0:00:21.5]} 48. Kf2 {[%clk 0:00:23.1]}
48... Rh3 {[%clk 0:00:22]} 49. Kg2 {[%clk 0:00:21.1]} 49... Rxf3 {[%clk
0:00:12.8]} 50. Rd7 {[%clk 0:00:21.4]} 50... Be2 {[%clk 0:00:06.7]} 51. Rd2
{[%clk 0:00:20.8]} 51... Rxc3 {[%clk 0:00:07.3]} 52. bxc3 {[%clk 0:00:20.5]}
52... Bxg4 {[%clk 0:00:08.1]} 53. Rd5 {[%clk 0:00:21]} 53... f5 {[%clk
0:00:07.5]} 54. exf5 {[%clk 0:00:19.8]} 54... Bxh5 {[%clk 0:00:08.2]} 55. Kg3
{[%clk 0:00:20]} 55... Kf7 {[%clk 0:00:07.2]} 56. Kf4 {[%clk 0:00:19.4]} 56...
Be2 {[%clk 0:00:07.3]} 57. Rd4 {[%clk 0:00:17.2]} 57... g6 {[%clk 0:00:06.3]}
58. fxg6+ {[%clk 0:00:17.2]} 58... Kxg6 {[%clk 0:00:07.2]} 59. c4 {[%clk
0:00:17.8]} 59... Kf6 {[%clk 0:00:07.8]} 60. c5 {[%clk 0:00:18.3]} 60... Bb5
{[%clk 0:00:08.3]} 61. c6 {[%clk 0:00:18.7]} 61... Ke6 {[%clk 0:00:06.8]} 62. c7
{[%clk 0:00:19]} 62... Bd7 {[%clk 0:00:07.2]} 63. Rd2 {[%clk 0:00:16.8]} 63...
Ke7 {[%clk 0:00:03.8]} 64. Ke5 {[%clk 0:00:16.9]} 64... h5 {[%clk 0:00:02.3]}
65. Rg2 {[%clk 0:00:15.5]} 65... h4 {[%clk 0:00:01.8]} 66. Rg7+ {[%clk
0:00:15.6]} 66... Ke8 {[%clk 0:00:02.5]} 67. Rg8+ {[%clk 0:00:15.6]} 67... Kf7
{[%clk 0:00:02.3]} 68. c8=Q {[%clk 0:00:16.5]} 68... Bxc8 {[%clk 0:00:02.9]} 69.
Rxc8 {[%clk 0:00:17.3]} 69... Kg6 {[%clk 0:00:03.8]} 70. Kf4 {[%clk 0:00:12.3]}
70... h3 {[%clk 0:00:01.5]} 71. Kg3 {[%clk 0:00:12.6]} 71... Kg5 {[%clk
0:00:02.4]} 72. Kxh3 {[%clk 0:00:12.7]} 72... Kf4 {[%clk 0:00:03.3]} 73. Rg8
{[%clk 0:00:11.8]} 73... Kf5 {[%clk 0:00:03.6]} 74. Rg4 {[%clk 0:00:12.4]} 74...
Ke5 {[%clk 0:00:04.5]} 75. Kg3 {[%clk 0:00:13.2]} 75... Ke6 {[%clk 0:00:05.4]}
76. Kf4 {[%clk 0:00:13.4]} 76... Kf6 {[%clk 0:00:06.3]} 77. Rg5 {[%clk
0:00:13.7]} 77... Kf7 {[%clk 0:00:07.2]} 78. Ke5 {[%clk 0:00:13.4]} 78... Ke7
{[%clk 0:00:08.1]} 79. Rg7+ {[%clk 0:00:13.6]} 79... Ke8 {[%clk 0:00:08.5]} 80.
Ke6 {[%clk 0:00:11.2]} 80... Kf8 {[%clk 0:00:09.4]} 81. Rg6 {[%clk 0:00:11.3]}
81... Ke8 {[%clk 0:00:10.3]} 82. Rg8# {[%clk 0:00:11.3]} 1-0